[Event "Polish Youth 1st League 2022"]
[Site "Lublin"]
[Date "2022.07.01"]
[Round "7.25"]
[White "Klim, Filip"]
[Black "Luczak, Filip"]
[Result "1-0"]
[ECO "B00"]
[WhiteElo "2015"]
[BlackElo "2311"]
[Annotator "TA"]
[PlyCount "99"]
[EventDate "2022.06.24"]
[EventType "team-tourn"]
[EventCountry "POL"]
[SourceTitle "playchess.com"]
[Source "ChessBase"]
[SourceQuality "1"]
[TimeControl "40/5400+30:1800+30"]

{[%evp 9,99,0,0,0,0,0,0,-12,77,104,84,74,109,82,164,162,169,168,157,152,239,267,312,358,590,568,462,123,120,-36,-40,-44,-35,-36,-6,-16,0,-15,-11,-13,0,0,0,0,0,0,61,0,0,0,80,77,77,0,0,0,533,504,480,457,811,763,656,635,29968,-29990,29999,0,29968,29969,29968,29970,29970,29971,29971,29972,29971,29972,29972,29973,29987,29973,29972,29973,29973,29974,29975,29975,29978,29978,29975,29965]} 1. e4 {[%emt 0:00:03]} d6 {[%emt 0:00:04]} 2. d4 {[%emt 0:00:07]} Nd7 {[%emt 0:00:04]} 3. Nc3 {[%emt 0:01:17]} a6 {[%emt 0:00:04]} 4. f4 {[%emt 0:03:24]} b5 {[%emt 0:00:23]} 5. Nf3 {[%emt 0:12:25]} Bb7 {[%emt 0:03:25]} 6. Bd3 {[%emt 0:04:48] B07: Pirc Defence: Miscellaneous Systems.} c5 {[%emt 0:01:41]} 7. e5 {[%emt 0:05:17] Inhibits Ngf6.} e6 {[%emt 0:09:27] [#]} 8. f5 $146 {[%emt 0:12:07] Threatens to win with fxe6. The position is equal.} ({Predecessor:} 8. exd6 Bxd6 9. Be4 Qc7 10. Bxb7 Qxb7 11. Qe2 Ngf6 12. dxc5 Bxc5 13. Be3 Rc8 14. O-O {½-½ (34) Malik,J (2300)-Mrva,M (2430) Tatranske Zruby 2018}) 8... dxe5 {[%emt 0:10:20]} (8... cxd4 $11 {remains equal.} 9. fxe6 fxe6 10. Nxd4 (10. Bg5 Bxf3 11. Qxf3 Nxe5 $17) 10... Qh4+ 11. Kf1 dxe5) 9. fxe6 $16 {[%emt 0:01:03]} fxe6 {[%emt 0:00:05]} 10. dxe5 {[%emt 0:07:07] Hoping for 0-0.} Qb6 {[%emt 0:06:28]} 11. Bg5 {[%emt 0:11:56]} Be7 {[%emt 0:06:31]} (11... Ne7 $16 {might work better.}) 12. Be4 $18 {[%emt 0:10:19]} O-O-O {[%emt 0:12:36][%cal Od7e5]} 13. Qe2 {[%emt 0:02:46]} h6 {[%emt 0:01:29]} 14. Bd2 {[%emt 0:02:52] White is more active.} c4 {[%emt 0:05:19]} (14... g5 $16 {is a better defense.}) 15. a4 {[%emt 0:02:07]} Nc5 {[%emt 0:07:06]} 16. Bxb7+ {[%emt 0:01:57]} Kxb7 $2 {[%emt 0:04:24]} (16... Nxb7 17. axb5 axb5) 17. axb5 {[%emt 0:00:45]} axb5 {[%emt 0:00:07]} 18. Ne4 $2 {[%emt 0:03:14]} (18. Be3 $18) 18... Qc6 $16 {[%emt 0:05:30]} 19. Nxc5+ {[%emt 0:02:10]} (19. Nd6+ $16 Bxd6 20. exd6) 19... Bxc5 $15 {[%emt 0:00:12]} 20. Be3 {[%emt 0:04:04]} Ne7 {[%emt 0:00:19][%cal Bg8e7,Be7f5,Bf5e3][%mdl 32]} 21. O-O {[%emt 0:03:44]} Nf5 {[%emt 0:00:15]} 22. Bf2 {[%emt 0:01:38]} Bxf2+ {[%emt 0:02:11]} 23. Qxf2 {[%emt 0:02:36]} Qb6 {[%emt 0:00:09] Against Qa7+} 24. c3 {[%emt 0:01:33]} Ne3 {[%emt 0:11:50]} 25. Rfb1 {[%emt 0:02:02]} Rhf8 {[%emt 0:07:27]} 26. b3 {[%emt 0:00:22]} cxb3 {[%emt 0:02:25]} 27. Rxb3 {[%emt 0:00:17]} g5 {[%emt 0:01:32]} (27... Rf4 $11) 28. Rxb5 {[%emt 0:01:28]} Qxb5 $11 {[%emt 0:00:14]} 29. Qxe3 {[%emt 0:00:04]} Qb6 {[%emt 0:00:44] Inhibits Qa7+.} (29... Ra8 $1 $11 {keeps the balance.} 30. Qe4+ Qd5 31. Qh7+ (31. Qb4+ Kc6 $11) 31... Kc8 32. Rxa8+ Qxa8) 30. Nd4 $16 {[%emt 0:00:05] Really sharp!} Rf4 {[%emt 0:00:34] Against Qe4+} 31. Qd3 {[%emt 0:00:36]} (31. Qc1 $1 $16 {Strongly threatening Rb1.} Kc7 32. h3) 31... Rfxd4 $11 {[%emt 0:00:20]} 32. cxd4 {[%emt 0:00:22]} Rxd4 $2 {[%emt 0:00:16][%mdl 12288] Endgame KQR-KQR} (32... Qxd4+ $11 {and Black stays safe.} 33. Qxd4 Rxd4) 33. Qf3+ $18 {[%emt 0:00:50]} Rd5+ {[%emt 0:02:52]} 34. Kh1 {[%emt 0:00:05]} Qc6 {[%emt 0:00:30]} (34... g4 $142 35. Qf7+ Kb8 36. Qe8+ Rd8) 35. Rb1+ {[%emt 0:00:36]} Kc7 {[%emt 0:00:08]} 36. Qf8 {[%emt 0:00:42] White threatens Qb8+ and mate.} Rd8 {[%emt 0:00:19] Against Qb8+} 37. Qe8 {[%mdl 8192]} Rd7 $4 {[%mdl 8192]} (37... Rxe8 38. Rf1 {[#]} Rf8 $3 {[%mdl 512]} 39. Rb1 Rf2 40. Rg1 g4 41. h3 Rxg2 $3 {[%mdl 512]} 42. Rxg2 gxh3 43. Kh2 Qxg2#) 38. Qf8 {[%emt 0:01:28][%csl Gb1][%cal Rf8b8]} Rd8 {[%emt 0:00:18]} 39. Qe7+ {[%emt 0:00:30] White mates.} Rd7 {[%emt 0:00:19]} 40. Qb4 {[%emt 0:00:00][%csl Gb1][%cal Rb4b8]} Rd8 {[%emt 0:00:00]} 41. Qa5+ {[%emt 0:04:24]} Kc8 {[%emt 0:01:35]} 42. Qa7 {[%emt 0:00:41][%csl Ga7][%cal Rb1b8]} Qc7 {[%emt 0:02:50]} 43. Qa6+ {[%emt 0:00:49]} Kd7 {[%emt 0:00:04]} 44. Rb7 {[%emt 0:00:25]} Ke8 {[%emt 0:00:13]} 45. Qa4+ {[%emt 0:00:08]} (45. Rxc7 $2 {leads to mate.} Rd1+) 45... Qd7 {[%emt 0:00:21]} 46. Rxd7 {[%emt 0:00:06]} Rxd7 {[%emt 0:00:02]} 47. h3 {[%emt 0:00:10]} Ke7 {[%emt 0:00:04]} 48. Qc2 {[%emt 0:00:39]} Rd5 {[%emt 0:00:09]} 49. Qh7+ {[%emt 0:00:08]} Ke8 {[%emt 0:00:12]} 50. Qg6+ {[%emt 0:00:12] Weighted Error Value: White=0.56/Black=0.65} 1-0

[Event "Polish Youth 1st League 2022"]
[Site "Lublin"]
[Date "2022.07.01"]
[Round "7.26"]
[White "Bachor, Tomasz"]
[Black "Bartodziej, Bartosz"]
[Result "1/2-1/2"]
[ECO "D71"]
[WhiteElo "1971"]
[BlackElo "1902"]
[Annotator "RC"]
[PlyCount "75"]
[EventDate "2022.06.24"]
[EventType "team-tourn"]
[EventCountry "POL"]
[SourceTitle "playchess.com"]
[Source "ChessBase"]
[SourceQuality "1"]
[TimeControl "40/5400+30:1800+30"]

1. d4 {[%emt 0:00:26]} Nf6 {[%emt 0:00:05]} 2. c4 {[%emt 0:00:17]} g6 {[%emt 0:00:05]} 3. g3 {[%emt 0:00:17]} c6 {[%emt 0:01:04]} 4. Bg2 {[%emt 0:00:05]} d5 {[%emt 0:00:07]} 5. Qa4 {[%emt 0:00:08]} dxc4 {[%emt 0:05:02]} 6. Qxc4 {[%emt 0:00:07]} Be6 {[%emt 0:07:12]} 7. Qa4 {[%emt 0:03:49]} Bg7 {[%emt 0:06:38]} 8. Nc3 {[%emt 0:02:38]} O-O {[%emt 0:02:51]} 9. Nf3 {[%emt 0:02:18]} Nbd7 {[%emt 0:19:06]} 10. O-O {[%emt 0:12:13]} Nb6 {[%emt 0:04:25]} 11. Qc2 {[%emt 0:00:48]} Nfd5 {[%emt 0:09:21]} 12. Rd1 {[%emt 0:05:45]} Nxc3 {[%emt 0:01:43]} 13. bxc3 {[%emt 0:00:25]} h6 {[%emt 0:06:08]} 14. e4 {[%emt 0:03:28]} Nc4 {[%emt 0:02:13]} 15. Nd2 {[%emt 0:04:43]} Nxd2 {[%emt 0:04:26]} 16. Bxd2 {[%emt 0:01:04]} Bc4 {[%emt 0:02:14]} 17. Rab1 {[%emt 0:03:42]} b5 {[%emt 0:04:41]} 18. Bf1 {[%emt 0:01:18]} Bxf1 {[%emt 0:01:10]} 19. Kxf1 {[%emt 0:01:27]} Qd7 {[%emt 0:01:41]} 20. Be3 {[%emt 0:03:02]} a6 {[%emt 0:04:26]} 21. Kg2 {[%emt 0:07:40]} h5 {[%emt 0:01:56]} 22. h4 {[%emt 0:00:15]} Rfc8 {[%emt 0:05:11]} 23. Qb3 {[%emt 0:05:21]} Rd8 {[%emt 0:02:29]} 24. a4 {[%emt 0:03:46]} Qg4 {[%emt 0:02:15]} 25. f3 {[%emt 0:00:27]} Qd7 {[%emt 0:00:13]} 26. c4 {[%emt 0:12:23]} Qa7 {[%emt 0:03:36]} 27. c5 {[%emt 0:09:54]} e6 {[%emt 0:01:24]} 28. d5 {[%emt 0:07:27]} exd5 {[%emt 0:00:09]} 29. exd5 {[%emt 0:01:59]} bxa4 {[%emt 0:01:02]} 30. Qxa4 {[%emt 0:00:08]} cxd5 {[%emt 0:00:09]} 31. Bg5 {[%emt 0:00:52]} Rdc8 {[%emt 0:01:04]} 32. c6 {[%emt 0:00:42]} Qc5 {[%emt 0:00:47]} 33. Rbc1 {[%emt 0:00:47]} Qd6 {[%emt 0:01:19]} 34. Bf4 {[%emt 0:00:32]} Be5 {[%emt 0:00:14]} 35. Bxe5 {[%emt 0:01:36]} Qxe5 {[%emt 0:00:02]} 36. Qa2 {[%emt 0:00:17]} d4 {[%emt 0:00:49]} 37. Qc4 {[%emt 0:00:55]} Ra7 {[%emt 0:01:02]} 38. Qxd4 {[%emt 0:01:04]} 1/2-1/2

[Event "Polish Youth 1st League 2022"]
[Site "Lublin"]
[Date "2022.07.01"]
[Round "7.27"]
[White "Nawalaniec, Adam"]
[Black "Cieslak, Patryk"]
[Result "0-1"]
[ECO "B30"]
[WhiteElo "1740"]
[BlackElo "2019"]
[Annotator "NA RC"]
[PlyCount "130"]
[EventDate "2022.06.24"]
[EventType "team-tourn"]
[EventCountry "POL"]
[SourceTitle "playchess.com"]
[Source "ChessBase"]
[SourceQuality "1"]
[TimeControl "40/5400+30:1800+30"]

1. e4 {[%emt 0:00:02]} c5 {[%emt 0:00:03]} 2. Nf3 {[%emt 0:00:07]} Nc6 {[%emt 0:00:23]} 3. d3 {[%emt 0:00:20]} g6 {[%emt 0:00:37]} 4. g3 {[%emt 0:00:26]} Bg7 {[%emt 0:00:06]} 5. Bg2 {[%emt 0:00:46]} e5 {[%emt 0:00:54]} 6. O-O {[%emt 0:02:48]} Nge7 {[%emt 0:00:23]} 7. c3 {[%emt 0:05:19]} O-O {[%emt 0:01:20]} 8. a3 {[%emt 0:04:37]} d6 {[%emt 0:01:49]} 9. b4 {[%emt 0:06:10]} a6 {[%emt 0:00:42]} 10. Qb3 {[%emt 0:10:07]} Be6 {[%emt 0:04:02]} 11. Qb2 {[%emt 0:04:18]} h6 {[%emt 0:04:19]} 12. a4 {[%emt 0:12:34]} cxb4 {[%emt 0:04:06]} 13. cxb4 {[%emt 0:00:12]} Bg4 {[%emt 0:01:27]} (13... d5 $15) 14. h3 {[%emt 0:17:08]} Bxf3 {[%emt 0:01:55]} 15. Bxf3 {[%emt 0:00:01]} Nd4 {[%emt 0:01:46]} 16. Bg2 {[%emt 0:00:22]} Rc8 {[%emt 0:01:36]} 17. Na3 {[%emt 0:02:40]} Rc3 {[%emt 0:07:40]} 18. Qd2 {[%emt 0:03:43]} Rc7 {[%emt 0:05:46]} 19. Qd1 {[%emt 0:10:35]} d5 {[%emt 0:03:07]} 20. Bb2 {[%emt 0:01:40]} dxe4 {[%emt 0:01:36]} 21. dxe4 {[%emt 0:00:27]} Nec6 {[%emt 0:02:29]} 22. Bc3 {[%emt 0:05:31]} Rd7 {[%emt 0:00:51]} 23. Nc4 {[%emt 0:02:21]} Nb5 {[%emt 0:04:50]} 24. Qb3 {[%emt 0:01:50]} Nxc3 {[%emt 0:00:41]} 25. Qxc3 {[%emt 0:00:02]} Rd3 {[%emt 0:00:05]} 26. Qb2 {[%emt 0:01:10]} Qd4 {[%emt 0:05:55]} 27. Rfc1 {[%emt 0:05:17]} Qxb2 {[%emt 0:02:23]} 28. Nxb2 {[%emt 0:00:01]} Rb3 {[%emt 0:00:18]} 29. Nc4 {[%emt 0:03:11]} Rxb4 {[%emt 0:01:42]} 30. Rab1 {[%emt 0:02:01]} a5 {[%emt 0:05:22]} 31. Nd6 {[%emt 0:01:57]} Rb8 {[%emt 0:01:38]} 32. Rxb4 {[%emt 0:00:52]} axb4 {[%emt 0:00:45]} 33. Nxb7 {[%emt 0:01:27]} Nd4 {[%emt 0:00:07]} 34. Bf1 {[%emt 0:00:32]} Rxb7 {[%emt 0:00:11]} 35. a5 {[%emt 0:00:01]} Bf8 {[%emt 0:01:22]} 36. a6 {[%emt 0:00:16]} Ra7 {[%emt 0:00:15]} 37. Rc8 {[%emt 0:00:32]} Kg7 $19 {[%emt 0:00:37]} 38. Bc4 {[%emt 0:00:34]} Bd6 {[%emt 0:01:00]} 39. Rd8 {[%emt 0:00:21]} Be7 {[%emt 0:01:12]} 40. Rb8 {[%emt 0:00:00]} b3 {[%emt 0:00:00]} 41. Bxb3 {[%emt 0:03:48]} Nxb3 {[%emt 0:01:01]} 42. Rxb3 {[%emt 0:00:07]} Rxa6 {[%emt 0:00:02]} 43. Rb2 {[%emt 0:00:51]} Bc5 {[%emt 0:00:08]} 44. Kg2 {[%emt 0:00:08]} Bd4 {[%emt 0:00:03]} 45. Rc2 {[%emt 0:00:24]} Rb6 {[%emt 0:00:03]} 46. Rc1 {[%emt 0:01:00]} Rb2 {[%emt 0:00:05]} 47. Rf1 {[%emt 0:00:02]} f5 {[%emt 0:00:09]} 48. exf5 {[%emt 0:00:12]} gxf5 {[%emt 0:00:03]} 49. g4 {[%emt 0:01:38]} Kf6 {[%emt 0:00:15]} 50. gxf5 {[%emt 0:00:17]} Kxf5 {[%emt 0:00:02]} 51. Kg3 {[%emt 0:00:28]} Rb3+ {[%emt 0:00:05]} 52. Kg2 {[%emt 0:00:40]} Kf4 {[%emt 0:00:02]} 53. h4 {[%emt 0:00:51]} Rb2 {[%emt 0:00:05]} 54. h5 {[%emt 0:00:24]} e4 {[%emt 0:00:08]} 55. Re1 {[%emt 0:01:15]} Rxf2+ {[%emt 0:00:18]} 56. Kh1 {[%emt 0:00:06]} Rf3 {[%emt 0:00:28]} 57. Kg2 {[%emt 0:00:15]} Be5 {[%emt 0:00:21]} 58. Rc1 {[%emt 0:00:25]} Rg3+ {[%emt 0:00:15]} 59. Kf1 {[%emt 0:01:16]} Kg4 {[%emt 0:00:32]} 60. Rc4 {[%emt 0:01:09]} Kf3 {[%emt 0:00:43]} 61. Rc3+ {[%emt 0:01:13]} e3 {[%emt 0:00:41]} 62. Rc2 {[%emt 0:00:42]} Rh3 {[%emt 0:00:39]} 63. Rf2+ {[%emt 0:00:35]} Ke4 {[%emt 0:00:07]} 64. Rg2 {[%emt 0:01:25]} Rh1+ {[%emt 0:00:19]} 65. Ke2 {[%emt 0:00:07]} Rh2 {[%emt 0:00:25]} 0-1

[Event "Polish Youth 1st League 2022"]
[Site "Lublin"]
[Date "2022.07.01"]
[Round "7.28"]
[White "Brzezina, Piotr"]
[Black "Kowalski, Witold"]
[Result "1-0"]
[ECO "B92"]
[WhiteElo "1633"]
[BlackElo "1613"]
[Annotator "NA RC"]
[PlyCount "143"]
[EventDate "2022.06.24"]
[EventType "team-tourn"]
[EventCountry "POL"]
[SourceTitle "playchess.com"]
[Source "ChessBase"]
[SourceQuality "1"]
[TimeControl "40/5400+30:1800+30"]

1. e4 {[%emt 0:00:03]} c5 {[%emt 0:00:05]} 2. Nf3 {[%emt 0:00:14]} d6 {[%emt 0:00:05]} 3. d4 {[%emt 0:00:15]} cxd4 {[%emt 0:00:12]} 4. Nxd4 {[%emt 0:00:06]} Nf6 {[%emt 0:00:08]} 5. Nc3 {[%emt 0:00:05]} a6 {[%emt 0:00:04]} 6. Be2 {[%emt 0:00:32]} e5 {[%emt 0:00:13]} 7. Nb3 {[%emt 0:00:04]} Be7 {[%emt 0:00:14]} 8. O-O {[%emt 0:00:09]} O-O {[%emt 0:00:14]} 9. Re1 {[%emt 0:00:19]} b5 {[%emt 0:11:40]} 10. a4 {[%emt 0:04:18]} b4 {[%emt 0:07:44]} 11. Nd5 {[%emt 0:00:25]} a5 {[%emt 0:15:19]} 12. Nxf6+ {[%emt 0:10:44]} Bxf6 {[%emt 0:00:06]} 13. Qd5 {[%emt 0:09:24]} Ra7 {[%emt 0:02:49]} 14. Be3 {[%emt 0:00:06]} Bb7 {[%emt 0:02:28]} 15. Qd3 {[%emt 0:03:22]} Ra8 {[%emt 0:01:39]} 16. Red1 {[%emt 0:01:56]} Be7 {[%emt 0:04:17]} 17. c4 {[%emt 0:06:13]} Nd7 {[%emt 0:05:26]} 18. Nd2 {[%emt 0:05:40]} Qc7 {[%emt 0:02:31]} 19. b3 {[%emt 0:03:39]} h6 {[%emt 0:05:02]} 20. Bg4 {[%emt 0:02:25]} Nf6 {[%emt 0:02:36]} 21. Bh3 {[%emt 0:03:14]} Rfd8 {[%emt 0:03:19]} 22. Rac1 {[%emt 0:01:18]} Qc6 {[%emt 0:01:54]} 23. f3 {[%emt 0:00:24]} Bc8 {[%emt 0:07:44]} 24. Bxc8 {[%emt 0:01:54]} Raxc8 {[%emt 0:00:15]} 25. Nf1 {[%emt 0:00:51]} Kh7 {[%emt 0:01:02]} 26. Ng3 {[%emt 0:03:04]} g6 {[%emt 0:01:42]} 27. Nf1 {[%emt 0:01:37]} Kg7 {[%emt 0:03:29]} 28. Qd2 {[%emt 0:00:56]} Rh8 {[%emt 0:02:36]} 29. g4 {[%emt 0:02:54]} Qc7 {[%emt 0:02:58]} 30. Qf2 Nd7 {[%emt 0:02:01]} 31. Rd5 {[%emt 0:07:44]} Rcf8 {[%emt 0:03:23]} 32. Rcd1 {[%emt 0:04:43]} f5 {[%emt 0:01:45]} 33. c5 {[%emt 0:01:57]} Qd8 {[%emt 0:06:07]} 34. cxd6 {[%emt 0:00:46]} Bg5 {[%emt 0:00:35]} 35. gxf5 {[%emt 0:01:49]} gxf5 {[%emt 0:00:48]} 36. Bxg5 {[%emt 0:01:28]} hxg5 {[%emt 0:01:00]} 37. Qg2 {[%emt 0:04:54]} fxe4 {[%emt 0:02:00]} 38. fxe4 {[%emt 0:00:22]} Kg6 {[%emt 0:00:29]} 39. Ne3 {[%emt 0:03:59]} Rf4 {[%emt 0:00:30]} 40. Ng4 {[%emt 0:00:00]} Rh4 {[%emt 0:00:00]} 41. Nf2 {[%emt 0:06:52]} Qb6 {[%emt 0:04:19]} 42. R5d3 {[%emt 0:05:28]} Rhg4 {[%emt 0:16:30]} 43. Rg3 {[%emt 0:00:09]} Rxg3 {[%emt 0:00:16]} 44. hxg3 {[%emt 0:00:32]} Rf6 {[%emt 0:00:18]} 45. Qf1 {[%emt 0:01:51]} Rxd6 {[%emt 0:01:26]} 46. Rxd6+ {[%emt 0:01:01]} Qxd6 {[%emt 0:00:08]} 47. Qh3 {[%emt 0:01:45]} Nf6 {[%emt 0:03:56]} 48. Qf5+ {[%emt 0:00:44]} Kh6 {[%emt 0:02:23]} 49. Kg2 {[%emt 0:01:18]} Qe7 {[%emt 0:01:45]} 50. Kh2 {[%emt 0:03:07]} Qd6 {[%emt 0:01:34]} 51. Kg1 {[%emt 0:00:32]} Qe7 {[%emt 0:01:11]} 52. Kg2 {[%emt 0:00:14]} Qd6 {[%emt 0:00:16]} 53. Kf3 {[%emt 0:00:04]} Qe7 {[%emt 0:01:47]} 54. Ke2 {[%emt 0:02:09]} Qd6 {[%emt 0:00:54]} 55. Qxf6+ {[%emt 0:03:08]} Qxf6 {[%emt 0:01:56]} 56. Ng4+ {[%emt 0:00:05]} Kg6 {[%emt 0:00:14]} 57. Nxf6 {[%emt 0:00:05]} Kxf6 {[%emt 0:00:06]} 58. Kd3 {[%emt 0:00:05]} Ke6 {[%emt 0:00:31]} 59. Kc4 {[%emt 0:00:07]} Kd6 {[%emt 0:00:19]} 60. Kb5 {[%emt 0:00:07]} g4 {[%emt 0:00:05]} 61. Kxa5 {[%emt 0:00:06]} Kc5 {[%emt 0:00:11]} 62. Ka6 {[%emt 0:00:06]} Kd4 {[%emt 0:03:06]} 63. Kb5 {[%emt 0:00:04]} Kc3 {[%emt 0:00:46]} 64. a5 {[%emt 0:00:06]} Kxb3 {[%emt 0:00:04]} 65. a6 {[%emt 0:00:07]} Kc3 {[%emt 0:00:23]} 66. a7 {[%emt 0:00:05]} b3 {[%emt 0:00:05]} 67. a8=Q {[%emt 0:00:20]} b2 {[%emt 0:00:40]} 68. Qa2 {[%emt 0:00:08]} Kc2 {[%emt 0:00:29]} 69. Kc4 {[%emt 0:00:05]} Kc1 {[%emt 0:00:53]} 70. Kc3 {[%emt 0:00:14]} b1=N+ {[%emt 0:01:42]} 71. Kd3 {[%emt 0:00:08]} Kd1 {[%emt 0:00:35]} 72. Qxb1# {[%emt 0:00:06]} 1-0

[Event "Polish Youth 1st League 2022"]
[Site "Lublin"]
[Date "2022.07.01"]
[Round "7.29"]
[White "Kudlak, Julia"]
[Black "Hertlein, Irena"]
[Result "1-0"]
[ECO "B32"]
[WhiteElo "1654"]
[BlackElo "1873"]
[Annotator "NA RC"]
[PlyCount "77"]
[EventDate "2022.06.24"]
[EventType "team-tourn"]
[EventCountry "POL"]
[SourceTitle "playchess.com"]
[Source "ChessBase"]
[SourceQuality "1"]
[TimeControl "40/5400+30:1800+30"]

1. e4 {[%emt 0:00:03]} c5 {[%emt 0:01:38]} 2. Nf3 {[%emt 0:00:08]} Nc6 {[%emt 0:00:12]} 3. d4 {[%emt 0:00:42]} cxd4 {[%emt 0:00:05]} 4. Nxd4 {[%emt 0:00:05]} e5 {[%emt 0:00:03]} 5. Nb5 {[%emt 0:06:18]} d6 {[%emt 0:01:30]} 6. N1c3 {[%emt 0:00:55]} a6 {[%emt 0:00:19]} 7. Na3 {[%emt 0:00:09]} Be7 {[%emt 0:00:07]} 8. Nd5 {[%emt 0:02:32]} Nf6 {[%emt 0:00:11]} 9. Nxf6+ {[%emt 0:01:04]} Bxf6 {[%emt 0:00:04]} 10. Nc4 {[%emt 0:03:13]} O-O {[%emt 0:00:39]} 11. c3 {[%emt 0:02:35]} Be7 {[%emt 0:00:15]} 12. Ne3 {[%emt 0:02:40]} Be6 {[%emt 0:11:39]} 13. Bd3 {[%emt 0:02:10]} Qd7 {[%emt 0:04:51]} 14. O-O {[%emt 0:05:59]} Rad8 {[%emt 0:09:50]} 15. Qe2 {[%emt 0:06:21]} Bf6 {[%emt 0:10:45]} (15... Bg5 $11) 16. f3 {[%emt 0:03:54]} g6 {[%emt 0:03:18]} 17. Bc4 {[%emt 0:04:22]} Bg7 {[%emt 0:06:12]} 18. Rd1 {[%emt 0:07:38]} Ne7 {[%emt 0:06:31]} 19. a4 {[%emt 0:05:39]} Kh8 {[%emt 0:02:25]} 20. b3 {[%emt 0:05:12]} f5 {[%emt 0:02:40]} 21. Ba3 {[%emt 0:01:42]} Nc8 {[%emt 0:04:15]} 22. Ra2 {[%emt 0:07:19]} f4 {[%emt 0:10:40]} 23. Bxe6 {[%emt 0:03:58]} Qxe6 {[%emt 0:00:01]} 24. Nd5 {[%emt 0:00:28]} Rf7 {[%emt 0:04:01]} 25. Rad2 {[%emt 0:01:00]} g5 {[%emt 0:01:14]} 26. Qc4 {[%emt 0:04:12]} Qd7 {[%emt 0:09:49]} 27. Qb4 {[%emt 0:07:28]} (27. a5 $16) 27... b5 {[%emt 0:03:17]} 28. axb5 {[%emt 0:02:21]} axb5 {[%emt 0:00:01]} 29. Kh1 {[%emt 0:04:30]} Bf8 $16 {[%emt 0:01:24]} 30. c4 {[%emt 0:01:14]} bxc4 {[%emt 0:02:04]} 31. bxc4 {[%emt 0:00:38]} Na7 {[%emt 0:02:48]} 32. Qb2 {[%emt 0:03:30]} Nc6 {[%emt 0:01:06]} 33. Nb6 {[%emt 0:01:51]} Qc7 {[%emt 0:00:12]} 34. c5 {[%emt 0:01:25]} Rb8 {[%emt 0:02:46]} 35. Qc3 {[%emt 0:03:19]} dxc5 {[%emt 0:00:18]} 36. Nd7 {[%emt 0:00:33]} Rd8 {[%emt 0:00:46]} 37. Nxe5 {[%emt 0:00:52]} Nd4 {[%emt 0:00:22]} 38. Nxf7+ {[%emt 0:00:20]} Qxf7 {[%emt 0:00:02]} 39. Bxc5 {[%emt 0:00:29]} 1-0

[Event "Polish Youth 1st League 2022"]
[Site "Lublin"]
[Date "2022.07.01"]
[Round "7.30"]
[White "Duda, Aleksandra"]
[Black "Dzierzgowska, Jagoda"]
[Result "1-0"]
[ECO "C02"]
[WhiteElo "1453"]
[BlackElo "1267"]
[Annotator "NA RC"]
[PlyCount "85"]
[EventDate "2022.06.24"]
[EventType "team-tourn"]
[EventCountry "POL"]
[SourceTitle "playchess.com"]
[Source "ChessBase"]
[SourceQuality "1"]
[TimeControl "40/5400+30:1800+30"]

1. e4 {[%emt 0:00:04]} e6 {[%emt 0:00:21]} 2. d4 {[%emt 0:00:05]} d5 {[%emt 0:00:21]} 3. e5 {[%emt 0:00:06]} c5 {[%emt 0:00:07]} 4. c3 {[%emt 0:00:07]} Nc6 {[%emt 0:00:34]} 5. Nf3 {[%emt 0:00:10]} Qb6 {[%emt 0:00:11]} 6. a3 {[%emt 0:00:09]} Bd7 {[%emt 0:02:21]} 7. b4 {[%emt 0:00:08]} cxd4 {[%emt 0:02:58]} 8. cxd4 {[%emt 0:00:07]} a6 {[%emt 0:04:50]} 9. Nc3 {[%emt 0:02:15]} Qd8 {[%emt 0:03:23]} 10. Bd3 {[%emt 0:06:33]} b5 {[%emt 0:01:44]} 11. Be3 {[%emt 0:02:20]} Nge7 {[%emt 0:09:12]} 12. O-O {[%emt 0:01:05]} Nc8 {[%emt 0:01:58]} 13. Nd2 {[%emt 0:05:08]} Nb6 {[%emt 0:00:50]} 14. f4 {[%emt 0:01:56]} Be7 {[%emt 0:01:21]} 15. f5 {[%emt 0:01:42]} Bg5 {[%emt 0:13:09]} 16. Qe2 {[%emt 0:04:20]} Bxe3+ {[%emt 0:05:57]} 17. Qxe3 {[%emt 0:00:05]} Nc4 {[%emt 0:06:50]} 18. Nxc4 {[%emt 0:00:30]} dxc4 {[%emt 0:01:23]} 19. fxe6 {[%emt 0:01:59]} Bxe6 {[%emt 0:01:21]} 20. Be4 {[%emt 0:00:38]} Ne7 {[%emt 0:04:22]} 21. Bxa8 {[%emt 0:00:54]} Qxa8 {[%emt 0:00:04]} 22. Ne4 {[%emt 0:01:54]} Nf5 23. Rxf5 {[%emt 0:00:26]} Bxf5 {[%emt 0:04:23]} 24. Nd6+ {[%emt 0:00:06]} Kd7 {[%emt 0:00:36]} 25. Nxf5 {[%emt 0:00:09]} g6 {[%emt 0:13:19]} 26. Nd6 {[%emt 0:00:07]} Qd5 {[%emt 0:01:50]} 27. Qe4 {[%emt 0:00:41]} Qxe4 {[%emt 0:02:38]} 28. Nxe4 {[%emt 0:00:04]} Ra8 {[%emt 0:01:37]} 29. a4 {[%emt 0:00:36]} Kc6 {[%emt 0:01:03]} 30. Nc5 {[%emt 0:01:58]} Ra7 {[%emt 0:03:21]} 31. Kf2 {[%emt 0:00:55]} bxa4 {[%emt 0:01:54]} 32. Rxa4 {[%emt 0:00:20]} Kb5 {[%emt 0:00:34]} 33. Ke3 {[%emt 0:01:10]} h6 {[%emt 0:00:38]} 34. Ra5+ {[%emt 0:00:42]} Kxb4 {[%emt 0:01:37]} 35. Rxa6 {[%emt 0:00:07]} Rxa6 {[%emt 0:00:58]} 36. Nxa6+ {[%emt 0:00:05]} Kb5 {[%emt 0:00:46]} 37. Nc5 {[%emt 0:00:19]} Kc6 {[%emt 0:00:37]} 38. Ke4 {[%emt 0:00:32]} h5 39. Na4 {[%emt 0:00:26]} Kb5 {[%emt 0:01:29]} 40. Nc3+ {[%emt 0:00:00]} Kb4 {[%emt 0:00:00]} 41. Ne2 {[%emt 0:00:12]} Kb5 {[%emt 0:01:30]} 42. d5 {[%emt 0:00:13]} Kb6 {[%emt 0:00:45]} 43. e6 {[%emt 0:00:11]} 1-0